[Event "*** Titled Tuesday Blitz"]
[Site "Chess.com"]
[Date "2019.06.04"]
[Round "3"]
[White "Joseph_Truelson"]
[Black "cool4chess"]
[Result "1-0"]
[WhiteElo "2268"]
[BlackElo "2333"]
[TimeControl "180+2"]
[EndTime "13:37:06 PDT"]
[Termination "Joseph_Truelson won by resignation"]

1. d4 {[%clk 0:03:01.9]} 1... d5 {[%clk 0:03:00.6]} 2. Nc3 {[%clk 0:03:02.8]}
2... Nf6 {[%clk 0:03:00.4]} 3. Bf4 {[%clk 0:03:03.5]} 3... c5 {[%clk 0:02:59.5]}
4. e3 {[%clk 0:03:03.9]} 4... Nc6 {[%clk 0:03:00.6]} 5. Nb5 {[%clk 0:03:04]}
5... Kd7 {[%clk 0:02:40.2]} 6. c4 {[%clk 0:02:46.9]} 6... Qa5+ {[%clk
0:02:27.8]} 7. Nc3 {[%clk 0:02:24.2]} 7... cxd4 {[%clk 0:02:28]} 8. exd4 {[%clk
0:02:21]} 8... e6 {[%clk 0:02:27.7]} 9. Nf3 {[%clk 0:02:17.1]} 9... Bb4 {[%clk
0:02:27.4]} 10. Bd2 {[%clk 0:02:14.7]} 10... Ne4 {[%clk 0:01:57.4]} 11. Rc1
{[%clk 0:01:25.8]} 11... Nxd2 {[%clk 0:01:53.4]} 12. Qxd2 {[%clk 0:01:23]} 12...
Bxc3 {[%clk 0:01:43.2]} 13. bxc3 {[%clk 0:01:20.8]} 13... Rd8 {[%clk 0:01:42.7]}
14. cxd5 {[%clk 0:01:18.3]} 14... Qxd5 {[%clk 0:01:41.3]} 15. Be2 {[%clk
0:01:11.5]} 15... Ke8 {[%clk 0:01:40.4]} 16. O-O {[%clk 0:01:11.2]} 16... Kf8
{[%clk 0:01:41.7]} 17. Bd3 {[%clk 0:01:09.1]} 17... Kg8 {[%clk 0:01:37.8]} 18.
Rfe1 {[%clk 0:01:06.4]} 18... h6 {[%clk 0:01:32.9]} 19. Ne5 {[%clk 0:01:02.1]}
19... Nxe5 {[%clk 0:01:28.7]} 20. Rxe5 {[%clk 0:01:04]} 20... Qd6 {[%clk
0:01:28]} 21. Rce1 {[%clk 0:01:00.8]} 21... b6 {[%clk 0:01:20.5]} 22. f4 {[%clk
0:00:36]} 22... Bb7 {[%clk 0:01:20.2]} 23. f5 {[%clk 0:00:36.9]} 23... exf5
{[%clk 0:01:22.1]} 24. Bxf5 {[%clk 0:00:35.9]} 24... g6 {[%clk 0:01:17.2]} 25.
Qxh6 {[%clk 0:00:22.1]} 25... gxf5 {[%clk 0:01:17.3]} 26. Re8+ {[%clk
0:00:20.8]} 26... Rxe8 {[%clk 0:01:18]} 27. Rxe8+ {[%clk 0:00:21.7]} 27... Rxe8
{[%clk 0:01:18.5]} 28. Qxd6 {[%clk 0:00:21.4]} 28... Be4 {[%clk 0:01:15.3]} 29.
Qd7 {[%clk 0:00:21.5]} 29... Ra8 {[%clk 0:01:15.5]} 30. c4 {[%clk 0:00:21.8]}
30... a6 {[%clk 0:00:59.7]} 31. c5 {[%clk 0:00:18.6]} 31... bxc5 {[%clk
0:00:58.5]} 32. dxc5 {[%clk 0:00:20.5]} 32... Rb8 {[%clk 0:00:58.8]} 33. c6
{[%clk 0:00:20]} 33... Rb1+ {[%clk 0:01:00.1]} 34. Kf2 {[%clk 0:00:21.3]} 34...
Rb2+ {[%clk 0:01:00.7]} 35. Ke3 {[%clk 0:00:22.6]} 35... Rc2 {[%clk 0:00:58.4]}
36. c7 {[%clk 0:00:23.1]} 36... Rc3+ {[%clk 0:01:00]} 37. Kf4 {[%clk 0:00:22.9]}
37... Bb7 {[%clk 0:01:01]} 38. Kg5 {[%clk 0:00:21.6]} 38... Kg7 {[%clk
0:01:01.2]} 39. h4 {[%clk 0:00:21.6]} 39... Rc4 {[%clk 0:01:01.2]} 40. Kxf5
{[%clk 0:00:21.6]} 40... Bxg2 {[%clk 0:00:59.4]} 41. Ke5 {[%clk 0:00:16.8]}
41... Bb7 {[%clk 0:00:55.2]} 42. h5 {[%clk 0:00:17.8]} 42... Rc5+ {[%clk
0:00:55.2]} 43. Kd4 {[%clk 0:00:17.8]} 43... Rc1 {[%clk 0:00:55.6]} 44. Ke3
{[%clk 0:00:17.2]} 44... Rc3+ {[%clk 0:00:54.7]} 45. Kd2 {[%clk 0:00:15.8]}
45... Rc4 {[%clk 0:00:55.5]} 46. h6+ {[%clk 0:00:14.2]} 46... Kxh6 {[%clk
0:00:56.2]} 47. Qxf7 {[%clk 0:00:15.6]} 47... Rc6 {[%clk 0:00:56.1]} 48. Qd7
{[%clk 0:00:16.2]} 48... Kg6 {[%clk 0:00:56.6]} 49. Qxc6+ {[%clk 0:00:16]} 49...
Bxc6 {[%clk 0:00:57.3]} 50. c8=Q {[%clk 0:00:16.6]} 50... Bb5 {[%clk 0:00:59.2]}
51. Qc7 {[%clk 0:00:17.7]} 51... Kf6 {[%clk 0:01:01.1]} 52. Kc3 {[%clk
0:00:19.3]} 52... Ke6 {[%clk 0:01:02.9]} 53. Kb4 {[%clk 0:00:21.2]} 53... Kd5
{[%clk 0:01:04.5]} 54. a4 {[%clk 0:00:21.9]} 54... Bd3 {[%clk 0:01:05.5]} 55.
Qc5+ {[%clk 0:00:22.1]} 55... Ke6 {[%clk 0:01:06.5]} 56. Kc3 {[%clk 0:00:22.9]}
56... Bf1 {[%clk 0:01:07]} 57. Kd4 {[%clk 0:00:24.8]} 57... Kf6 {[%clk
0:01:07.1]} 58. Qd6+ {[%clk 0:00:24.9]} 58... Kf5 {[%clk 0:01:07.7]} 59. a5
{[%clk 0:00:26]} 59... Bb5 {[%clk 0:01:08.2]} 60. Qe5+ {[%clk 0:00:26.7]} 60...
Kg6 {[%clk 0:01:09.3]} 61. Qf4 {[%clk 0:00:27.6]} 61... Be2 {[%clk 0:01:08.4]}
62. Qe4+ {[%clk 0:00:26.6]} 1-0

[Event "*** Titled Tuesday Blitz"]
[Site "Chess.com"]
[Date "2019.06.04"]
[Round "3"]
[White "BillieKimbah"]
[Black "SoltaniciR"]
[Result "1-0"]
[WhiteElo "2786"]
[BlackElo "2601"]
[TimeControl "180+2"]
[EndTime "13:37:09 PDT"]
[Termination "BillieKimbah won by resignation"]

1. c4 {[%clk 0:03:01.9]} 1... c5 {[%clk 0:01:02.9]} 2. Nf3 {[%clk 0:02:58.5]}
2... Nf6 {[%clk 0:01:03.9]} 3. g3 {[%clk 0:02:58.6]} 3... b6 {[%clk 0:01:04.8]}
4. Bg2 {[%clk 0:02:58.8]} 4... Bb7 {[%clk 0:01:06.7]} 5. O-O {[%clk 0:02:58.9]}
5... e6 {[%clk 0:01:08.6]} 6. Nc3 {[%clk 0:03:00.2]} 6... a6 {[%clk 0:01:08.6]}
7. Re1 {[%clk 0:03:00.8]} 7... d6 {[%clk 0:01:09.3]} 8. e4 {[%clk 0:03:01.5]}
8... Nbd7 {[%clk 0:01:10.3]} 9. d4 {[%clk 0:03:01.9]} 9... cxd4 {[%clk
0:01:12.2]} 10. Nxd4 {[%clk 0:03:02.7]} 10... Qc7 {[%clk 0:01:13.9]} 11. Be3
{[%clk 0:02:56.6]} 11... Be7 {[%clk 0:01:15.4]} 12. Rc1 {[%clk 0:02:56.8]} 12...
Rc8 {[%clk 0:01:17]} 13. b3 {[%clk 0:02:54.4]} 13... O-O {[%clk 0:01:17.9]} 14.
f4 {[%clk 0:02:53.5]} 14... Rfe8 {[%clk 0:01:15.7]} 15. Bf2 {[%clk 0:02:53.9]}
15... g6 {[%clk 0:01:11]} 16. h3 {[%clk 0:02:44.1]} 16... Bf8 {[%clk 0:01:07.3]}
17. Qd2 {[%clk 0:02:43.3]} 17... e5 {[%clk 0:01:02.4]} 18. Nc2 {[%clk
0:02:41.2]} 18... exf4 {[%clk 0:00:56.1]} 19. gxf4 {[%clk 0:02:41.6]} 19... b5
{[%clk 0:00:46.6]} 20. Nd5 {[%clk 0:02:04.6]} 20... Nxd5 {[%clk 0:00:47.7]} 21.
cxd5 {[%clk 0:02:05.7]} 21... Qc3 {[%clk 0:00:48.9]} 22. Qxc3 {[%clk 0:01:55]}
22... Rxc3 {[%clk 0:00:50.8]} 23. Nb4 {[%clk 0:01:53.6]} 23... Rxc1 {[%clk
0:00:46.3]} 24. Rxc1 {[%clk 0:01:54.1]} 24... Nc5 {[%clk 0:00:37.7]} 25. e5
{[%clk 0:01:49.2]} 25... a5 {[%clk 0:00:28.3]} 26. Bxc5 {[%clk 0:01:42.1]} 26...
dxc5 {[%clk 0:00:27.6]} 27. Nd3 {[%clk 0:01:43.2]} 27... Rd8 {[%clk 0:00:25.6]}
28. d6 {[%clk 0:01:40.5]} 28... Bxg2 {[%clk 0:00:25.8]} 29. Kxg2 {[%clk
0:01:42.4]} 29... Bxd6 {[%clk 0:00:26.5]} 30. exd6 {[%clk 0:01:42.9]} 30... Rxd6
{[%clk 0:00:28.4]} 31. Rd1 {[%clk 0:01:22.6]} 31... c4 {[%clk 0:00:25.4]} 32.
bxc4 {[%clk 0:01:15.1]} 32... bxc4 {[%clk 0:00:27.3]} 33. Nb2 {[%clk 0:01:13.3]}
33... Rc6 {[%clk 0:00:28.5]} 34. Rc1 {[%clk 0:01:08.7]} 34... c3 {[%clk
0:00:29.7]} 35. Nd1 {[%clk 0:01:06.2]} 35... c2 {[%clk 0:00:29.9]} 36. Ne3
{[%clk 0:01:07.3]} 36... Rc3 {[%clk 0:00:26]} 37. Kf2 {[%clk 0:01:08.2]} 37...
Ra3 {[%clk 0:00:25.1]} 38. Rxc2 {[%clk 0:01:08.5]} 38... Kg7 {[%clk 0:00:27]}
39. Kf3 {[%clk 0:00:55.5]} 39... h5 {[%clk 0:00:25.9]} 40. h4 {[%clk 0:00:53.9]}
40... Kf6 {[%clk 0:00:24.9]} 41. Ke4 {[%clk 0:00:54.8]} 41... Ra4+ {[%clk
0:00:24.8]} 42. Nc4 {[%clk 0:00:55.6]} 42... Ke6 {[%clk 0:00:25]} 43. a3 {[%clk
0:00:55.9]} 43... f6 {[%clk 0:00:25.2]} 44. Kd4 {[%clk 0:00:57]} 44... Kf5
{[%clk 0:00:25.3]} 45. Kc5 {[%clk 0:00:55.2]} 45... Kxf4 {[%clk 0:00:22.8]} 46.
Kb5 {[%clk 0:00:56.4]} 46... Rxc4 {[%clk 0:00:23.2]} 47. Rxc4+ {[%clk
0:00:57.2]} 47... Kg3 {[%clk 0:00:24.1]} 48. Kxa5 {[%clk 0:00:53.7]} 48... g5
{[%clk 0:00:24]} 49. a4 {[%clk 0:00:48.9]} 49... gxh4 {[%clk 0:00:24.1]} 50. Kb4
{[%clk 0:00:48.8]} 50... h3 {[%clk 0:00:22.9]} 51. a5 {[%clk 0:00:50]} 51... h2
{[%clk 0:00:23.5]} 52. Rc1 {[%clk 0:00:51.6]} 1-0

[Event "*** Titled Tuesday Blitz"]
[Site "Chess.com"]
[Date "2019.06.04"]
[Round "3"]
[White "FedaMaster"]
[Black "DrMelekess"]
[Result "1-0"]
[WhiteElo "2578"]
[BlackElo "2741"]
[TimeControl "180+2"]
[EndTime "13:37:11 PDT"]
[Termination "FedaMaster won by resignation"]

1. e4 {[%clk 0:03:01.9]} 1... Nc6 {[%clk 0:02:50.9]} 2. Nf3 {[%clk 0:03:01]}
2... d5 {[%clk 0:02:51.5]} 3. exd5 {[%clk 0:03:01.1]} 3... Qxd5 {[%clk
0:02:53.4]} 4. Nc3 {[%clk 0:03:02.3]} 4... Qa5 {[%clk 0:02:53.7]} 5. Bb5 {[%clk
0:02:56.1]} 5... Bd7 {[%clk 0:02:54.2]} 6. O-O {[%clk 0:02:56.6]} 6... a6 {[%clk
0:02:54.7]} 7. Bc4 {[%clk 0:02:52.3]} 7... Qh5 {[%clk 0:02:54.9]} 8. h3 {[%clk
0:02:44.6]} 8... O-O-O {[%clk 0:02:49.1]} 9. d3 {[%clk 0:02:45.3]} 9... f6
{[%clk 0:02:36.2]} 10. b4 {[%clk 0:02:18]} 10... Nxb4 {[%clk 0:02:24.6]} 11. Rb1
{[%clk 0:02:00.3]} 11... e5 {[%clk 0:02:24.1]} 12. a3 {[%clk 0:01:30.4]} 12...
Nc6 {[%clk 0:02:24.2]} 13. Be3 {[%clk 0:00:44.5]} 13... Nd4 {[%clk 0:02:08.5]}
14. Bxd4 {[%clk 0:00:31.7]} 14... exd4 {[%clk 0:02:07.7]} 15. Ne2 {[%clk
0:00:32.5]} 15... Bd6 {[%clk 0:01:54.8]} 16. Nexd4 {[%clk 0:00:23]} 16... Ne7
{[%clk 0:01:19.4]} 17. Ne6 {[%clk 0:00:20.5]} 17... Bxe6 {[%clk 0:01:20.3]} 18.
Bxe6+ {[%clk 0:00:22.2]} 18... Kb8 {[%clk 0:01:21.9]} 19. Re1 {[%clk 0:00:23.8]}
19... Ng6 {[%clk 0:01:15]} 20. Qe2 {[%clk 0:00:15.3]} 20... Ka7 {[%clk
0:00:48.9]} 21. Qe3+ {[%clk 0:00:13.9]} 21... Bc5 {[%clk 0:00:43.2]} 22. d4
{[%clk 0:00:14.7]} 22... Bb6 {[%clk 0:00:43.9]} 23. c4 {[%clk 0:00:16]} 23... c6
{[%clk 0:00:21.8]} 24. Qb3 {[%clk 0:00:14.9]} 24... Qa5 {[%clk 0:00:19]} 25. c5
{[%clk 0:00:16.4]} 25... Nf4 {[%clk 0:00:18]} 26. Qxb6+ {[%clk 0:00:14.8]} 26...
Qxb6 {[%clk 0:00:18.8]} 27. cxb6+ {[%clk 0:00:16.3]} 27... Kb8 {[%clk
0:00:20.1]} 28. Bc4 {[%clk 0:00:17.7]} 28... Rhe8 {[%clk 0:00:19.6]} 29. Rxe8
{[%clk 0:00:10.8]} 29... Rxe8 {[%clk 0:00:21.5]} 30. Re1 {[%clk 0:00:12.6]}
30... Rxe1+ {[%clk 0:00:21.8]} 31. Nxe1 {[%clk 0:00:14.5]} 31... Kc8 {[%clk
0:00:23.2]} 32. Kh2 {[%clk 0:00:11.6]} 32... Kd7 {[%clk 0:00:24.4]} 33. g3
{[%clk 0:00:12.8]} 33... Ng6 {[%clk 0:00:26]} 34. f4 {[%clk 0:00:14.1]} 34...
Ne7 {[%clk 0:00:27.6]} 35. Nd3 {[%clk 0:00:15.2]} 35... Kc8 {[%clk 0:00:20.4]}
36. Be6+ {[%clk 0:00:15.4]} 36... Kb8 {[%clk 0:00:21.1]} 37. Nc5 {[%clk
0:00:16.7]} 37... g6 {[%clk 0:00:21.6]} 38. g4 {[%clk 0:00:17.3]} 38... Ka8
{[%clk 0:00:20.7]} 39. Kg3 {[%clk 0:00:17.6]} 39... Kb8 {[%clk 0:00:22.1]} 40.
a4 {[%clk 0:00:16.3]} 40... a5 {[%clk 0:00:22.4]} 41. Kf3 {[%clk 0:00:16.3]}
41... Ka8 {[%clk 0:00:23.7]} 42. Ke4 {[%clk 0:00:16.6]} 42... Kb8 {[%clk
0:00:25.3]} 43. g5 {[%clk 0:00:17.9]} 1-0

[Event "*** Titled Tuesday Blitz"]
[Site "Chess.com"]
[Date "2019.06.04"]
[Round "3"]
[White "kintoho"]
[Black "jefferyx"]
[Result "0-1"]
[WhiteElo "2532"]
[BlackElo "2895"]
[TimeControl "180+2"]
[EndTime "13:37:12 PDT"]
[Termination "jefferyx won by resignation"]

1. e4 {[%clk 0:03:01.9]} 1... c6 {[%clk 0:02:59.5]} 2. d4 {[%clk 0:03:01.9]}
2... d5 {[%clk 0:03:00.9]} 3. e5 {[%clk 0:03:03.1]} 3... Bf5 {[%clk 0:03:02]} 4.
h4 {[%clk 0:03:04]} 4... h5 {[%clk 0:03:02.6]} 5. c4 {[%clk 0:03:04]} 5... e6
{[%clk 0:03:00.2]} 6. Bg5 {[%clk 0:03:04.8]} 6... Qb6 {[%clk 0:02:59.1]} 7. Qd2
{[%clk 0:03:04.4]} 7... dxc4 {[%clk 0:02:49.8]} 8. Nc3 {[%clk 0:03:05]} 8... Qb4
{[%clk 0:02:05.7]} 9. Nf3 {[%clk 0:02:58.4]} 9... Nd7 {[%clk 0:02:05.2]} 10. Be2
{[%clk 0:02:51]} 10... Nb6 {[%clk 0:02:05.8]} 11. O-O {[%clk 0:02:49.8]} 11...
Ne7 {[%clk 0:02:02.9]} 12. a3 {[%clk 0:02:42.9]} 12... Qa5 {[%clk 0:02:03.8]}
13. Ne4 {[%clk 0:02:34.4]} 13... Qxd2 {[%clk 0:02:04.8]} 14. Nd6+ {[%clk
0:02:35.2]} 14... Kd7 {[%clk 0:02:06.5]} 15. Nxd2 {[%clk 0:02:27.3]} 15... f6
{[%clk 0:02:03.5]} 16. exf6 {[%clk 0:02:18.1]} 16... Kxd6 {[%clk 0:01:58.8]} 17.
fxe7 {[%clk 0:02:19]} 17... Bxe7 {[%clk 0:02:00.7]} 18. Bxe7+ {[%clk 0:02:18]}
18... Kxe7 {[%clk 0:02:02.6]} 19. Nxc4 {[%clk 0:02:12.3]} 19... Rhd8 {[%clk
0:02:03.7]} 20. Na5 {[%clk 0:02:08.4]} 20... Rxd4 {[%clk 0:01:54.9]} 21. Nxb7
{[%clk 0:02:09.4]} 21... Rxh4 {[%clk 0:01:43.3]} 22. Rac1 {[%clk 0:02:07.8]}
22... Nd5 {[%clk 0:01:33.5]} 23. Rxc6 {[%clk 0:02:06.4]} 23... Rb8 {[%clk
0:01:34.5]} 24. Ba6 {[%clk 0:01:55.8]} 24... Rg4 {[%clk 0:01:14]} 25. f3 {[%clk
0:01:46.3]} 25... Rg3 {[%clk 0:01:15]} 26. Kf2 {[%clk 0:01:46.9]} 26... h4
{[%clk 0:01:16.5]} 27. b4 {[%clk 0:01:42]} 27... Nf4 {[%clk 0:01:14.4]} 28. Rg1
{[%clk 0:01:40.5]} 28... Rg5 {[%clk 0:00:42]} 29. Rc7+ {[%clk 0:01:38.1]} 29...
Kf6 {[%clk 0:00:43.1]} 30. Nc5 {[%clk 0:01:33.1]} 30... Rd8 {[%clk 0:00:33.1]}
31. Nd7+ {[%clk 0:01:30.3]} 31... Kg6 {[%clk 0:00:34.3]} 32. Ne5+ {[%clk
0:01:31.1]} 32... Kh7 {[%clk 0:00:35.5]} 33. Rd7 {[%clk 0:01:28.7]} 33... Rxd7
{[%clk 0:00:34.3]} 34. Nxd7 {[%clk 0:01:29.4]} 34... h3 {[%clk 0:00:36.2]} 35.
g3 {[%clk 0:01:27.6]} 35... Nd3+ {[%clk 0:00:20.4]} 36. Ke3 {[%clk 0:01:28.8]}
36... Rxg3 {[%clk 0:00:12]} 37. Rh1 {[%clk 0:01:20.2]} 37... Nb2 {[%clk
0:00:10.1]} 38. Bf1 {[%clk 0:01:19.5]} 38... Nd1+ {[%clk 0:00:03.3]} 39. Kf4
{[%clk 0:01:19.4]} 39... Rg6 {[%clk 0:00:05.2]} 40. Bxh3 {[%clk 0:01:18.5]}
40... Bxh3 {[%clk 0:00:02.7]} 41. Rxh3+ {[%clk 0:01:19.6]} 41... Kg8 {[%clk
0:00:04.6]} 42. Ne5 {[%clk 0:01:19.5]} 42... Rf6+ {[%clk 0:00:05.7]} 43. Ke4
{[%clk 0:01:20.5]} 43... Nc3+ {[%clk 0:00:07.5]} 44. Ke3 {[%clk 0:01:19.4]}
44... Nd5+ {[%clk 0:00:08.5]} 45. Kf2 {[%clk 0:01:19.7]} 45... Rf5 {[%clk
0:00:09.7]} 46. Nc6 {[%clk 0:01:18.8]} 46... a6 {[%clk 0:00:09.8]} 47. Nd4
{[%clk 0:01:18.4]} 47... Rf6 {[%clk 0:00:10.1]} 48. Rh1 {[%clk 0:01:18.3]} 48...
e5 {[%clk 0:00:11]} 49. Nb3 {[%clk 0:01:18.2]} 49... e4 {[%clk 0:00:12.4]} 50.
Rh3 {[%clk 0:01:18.2]} 50... e3+ {[%clk 0:00:12]} 51. Ke1 {[%clk 0:01:16.6]}
51... Rg6 {[%clk 0:00:13.7]} 52. Nd4 {[%clk 0:01:16.2]} 52... Rg1+ {[%clk
0:00:13]} 53. Ke2 {[%clk 0:01:17.7]} 53... Nf4+ {[%clk 0:00:14.9]} 54. Kxe3
{[%clk 0:01:19.3]} 54... Nxh3 {[%clk 0:00:16.8]} 55. Nc6 {[%clk 0:01:19.8]}
55... Ra1 {[%clk 0:00:17.6]} 56. Kd4 {[%clk 0:01:19.4]} 56... Rxa3 {[%clk
0:00:18.6]} 57. Ne5 {[%clk 0:01:20.3]} 57... Ng5 {[%clk 0:00:18.5]} 58. f4
{[%clk 0:01:20.8]} 58... Nf3+ {[%clk 0:00:19.9]} 59. Ke4 {[%clk 0:01:20.7]}
59... Nxe5 {[%clk 0:00:20.5]} 60. fxe5 {[%clk 0:01:22.2]} 60... Kf7 {[%clk
0:00:22.4]} 61. Kd5 {[%clk 0:01:23.5]} 61... g5 {[%clk 0:00:23.6]} 62. Kd6
{[%clk 0:01:24.8]} 62... Ke8 {[%clk 0:00:25.2]} 63. e6 {[%clk 0:01:25.7]} 63...
g4 {[%clk 0:00:26.6]} 64. b5 {[%clk 0:01:26.2]} 64... axb5 {[%clk 0:00:27.4]}
0-1

[Event "*** Titled Tuesday Blitz"]
[Site "Chess.com"]
[Date "2019.06.04"]
[Round "3"]
[White "TastyFrenchFries"]
[Black "Fighter008"]
[Result "1-0"]
[WhiteElo "2460"]
[BlackElo "2634"]
[TimeControl "180+2"]
[EndTime "13:37:12 PDT"]
[Termination "TastyFrenchFries won by resignation"]

1. e4 {[%clk 0:03:01.9]} 1... c5 {[%clk 0:03:00.4]} 2. Bd3 {[%clk 0:03:01.1]}
2... d6 {[%clk 0:02:59.2]} 3. c3 {[%clk 0:03:00.9]} 3... g6 {[%clk 0:02:49.7]}
4. Nf3 {[%clk 0:02:57.2]} 4... Bg7 {[%clk 0:02:50.6]} 5. O-O {[%clk 0:02:58.3]}
5... e5 {[%clk 0:02:47.2]} 6. Bc2 {[%clk 0:02:57.5]} 6... Nc6 {[%clk 0:02:48.1]}
7. d3 {[%clk 0:02:56.7]} 7... Nge7 {[%clk 0:02:48.6]} 8. Nbd2 {[%clk 0:02:56.2]}
8... O-O {[%clk 0:02:49.4]} 9. Re1 {[%clk 0:02:55.9]} 9... h6 {[%clk 0:02:50]}
10. a4 {[%clk 0:02:55]} 10... Be6 {[%clk 0:02:50.5]} 11. Nc4 {[%clk 0:02:53.9]}
11... f5 {[%clk 0:02:47.1]} 12. exf5 {[%clk 0:02:50.1]} 12... gxf5 {[%clk
0:02:48]} 13. Bd2 {[%clk 0:02:44.1]} 13... Ng6 {[%clk 0:02:44.2]} 14. Rb1 {[%clk
0:02:40.5]} 14... Qd7 {[%clk 0:02:36.4]} 15. b4 {[%clk 0:02:33.6]} 15... cxb4
{[%clk 0:02:21.6]} 16. cxb4 {[%clk 0:02:32.8]} 16... d5 {[%clk 0:02:23.1]} 17.
Na3 {[%clk 0:02:29.2]} 17... e4 {[%clk 0:02:23.5]} 18. dxe4 {[%clk 0:02:22.5]}
18... dxe4 {[%clk 0:02:14]} 19. b5 {[%clk 0:02:22.6]} 19... Nce7 {[%clk
0:02:08.2]} 20. Bb4 {[%clk 0:02:13]} 20... Nd5 {[%clk 0:01:46.5]} 21. Bxf8
{[%clk 0:02:06.8]} 21... Rxf8 {[%clk 0:01:43.7]} 22. Nd4 {[%clk 0:02:05.3]}
22... Nc3 {[%clk 0:01:41.7]} 23. Nxe6 {[%clk 0:02:03.8]} 23... Nxd1 {[%clk
0:01:37.3]} 24. Nxf8 {[%clk 0:01:59]} 24... Bxf8 {[%clk 0:01:35.5]} 25. Rexd1
{[%clk 0:01:51.8]} 25... Qg7 {[%clk 0:01:20.5]} 26. Nc4 {[%clk 0:01:51]} 26...
Nf4 {[%clk 0:01:19.3]} 27. Ne3 {[%clk 0:01:49.2]} 27... Ne2+ {[%clk 0:01:04.3]}
28. Kh1 {[%clk 0:01:45.1]} 28... Nc3 {[%clk 0:01:05]} 29. Nxf5 {[%clk
0:01:43.7]} 29... Qe5 {[%clk 0:01:03.8]} 30. Ne3 {[%clk 0:01:42.1]} 30... Nxd1
{[%clk 0:01:01.1]} 31. Rxd1 {[%clk 0:01:41]} 31... Bc5 {[%clk 0:01:01.7]} 32. h3
{[%clk 0:01:36.6]} 32... Qf4 {[%clk 0:00:48.3]} 33. Bb3+ {[%clk 0:01:28.8]}
33... Kg7 {[%clk 0:00:48.6]} 34. Rd7+ {[%clk 0:01:28.5]} 34... Kg6 {[%clk
0:00:44.4]} 35. Bf7+ {[%clk 0:01:27]} 35... Kg5 {[%clk 0:00:42.2]} 36. Rd5+
{[%clk 0:01:15.7]} 36... Kf6 {[%clk 0:00:41.1]} 37. Rxc5 {[%clk 0:01:12.6]}
37... Qd6 {[%clk 0:00:27.7]} 38. Rf5+ {[%clk 0:01:11.3]} 38... Kg7 {[%clk
0:00:28.8]} 39. Bd5 {[%clk 0:01:08]} 39... Qb4 {[%clk 0:00:28.6]} 40. g4 {[%clk
0:01:05.4]} 40... Qxa4 {[%clk 0:00:26.6]} 41. Rf7+ {[%clk 0:01:04.7]} 41... Kg6
{[%clk 0:00:25.9]} 42. h4 {[%clk 0:01:01.7]} 42... Qxb5 {[%clk 0:00:23.9]} 43.
h5+ {[%clk 0:00:55.9]} 43... Kg5 {[%clk 0:00:24.6]} 44. Kg2 {[%clk 0:00:41.5]}
44... Qd3 {[%clk 0:00:21]} 45. Kg3 {[%clk 0:00:35.8]} 1-0

[Event "*** Titled Tuesday Blitz"]
[Site "Chess.com"]
[Date "2019.06.04"]
[Round "3"]
[White "ehrenfeld"]
[Black "Bigfish1995"]
[Result "0-1"]
[WhiteElo "2508"]
[BlackElo "2963"]
[TimeControl "180+2"]
[EndTime "13:37:13 PDT"]
[Termination "Bigfish1995 won by resignation"]

1. e4 {[%clk 0:03:00.9]} 1... c5 {[%clk 0:02:57.1]} 2. Nf3 {[%clk 0:03:00.9]}
2... Nc6 {[%clk 0:02:58.1]} 3. Bb5 {[%clk 0:03:01.9]} 3... g6 {[%clk 0:02:58.5]}
4. Bxc6 {[%clk 0:03:02.6]} 4... bxc6 {[%clk 0:02:56.1]} 5. O-O {[%clk
0:03:02.8]} 5... Bg7 {[%clk 0:02:56.8]} 6. Re1 {[%clk 0:03:03.6]} 6... Nh6
{[%clk 0:02:57.8]} 7. c3 {[%clk 0:03:04.1]} 7... O-O {[%clk 0:02:57.6]} 8. h3
{[%clk 0:03:02.1]} 8... f5 {[%clk 0:02:58.6]} 9. e5 {[%clk 0:03:01.7]} 9... Nf7
{[%clk 0:02:59]} 10. d3 {[%clk 0:02:52.1]} 10... Rb8 {[%clk 0:02:58.7]} 11. Qa4
{[%clk 0:02:42.9]} 11... Qc7 {[%clk 0:02:26.3]} 12. Qf4 {[%clk 0:02:32.7]} 12...
d6 {[%clk 0:02:19.6]} 13. e6 {[%clk 0:02:27.5]} 13... Nd8 {[%clk 0:02:20.1]} 14.
Na3 {[%clk 0:02:09]} 14... Nxe6 {[%clk 0:02:15.1]} 15. Qh4 {[%clk 0:02:09.7]}
15... Bf6 {[%clk 0:02:10.3]} 16. Qg3 {[%clk 0:02:02.5]} 16... f4 {[%clk
0:02:06.4]} 17. Bxf4 {[%clk 0:01:48.5]} 17... Nxf4 {[%clk 0:02:07.2]} 18. Qxf4
{[%clk 0:01:49.5]} 18... Rxb2 {[%clk 0:02:07.8]} 19. Qc1 {[%clk 0:01:36.8]}
19... Rb8 {[%clk 0:02:05.7]} 20. Nc4 {[%clk 0:01:36.7]} 20... Bf5 {[%clk
0:01:49.5]} 21. Qd2 {[%clk 0:01:36.1]} 21... e5 {[%clk 0:01:41.6]} 22. Ne3
{[%clk 0:01:23.8]} 22... Be6 {[%clk 0:01:39.2]} 23. Ng4 {[%clk 0:01:20.5]} 23...
Bg7 {[%clk 0:01:38.8]} 24. d4 {[%clk 0:01:19.8]} 24... cxd4 {[%clk 0:01:31.3]}
25. cxd4 {[%clk 0:01:20.8]} 25... Bxg4 {[%clk 0:00:42.3]} 26. hxg4 {[%clk
0:01:20.8]} 26... exd4 {[%clk 0:00:43.6]} 27. Nxd4 {[%clk 0:01:19]} 27... Qb6
{[%clk 0:00:43]} 28. Rad1 {[%clk 0:01:17.5]} 28... Qxd4 {[%clk 0:00:41.2]} 29.
Qxd4 {[%clk 0:01:17.9]} 29... Bxd4 {[%clk 0:00:42.6]} 30. Rxd4 {[%clk
0:01:18.9]} 30... d5 {[%clk 0:00:44.3]} 31. Ra4 {[%clk 0:00:39.1]} 31... Rf7
{[%clk 0:00:42.8]} 32. Ra6 {[%clk 0:00:35.4]} 32... Rc7 {[%clk 0:00:42.9]} 33.
Re6 {[%clk 0:00:32]} 33... Rb6 {[%clk 0:00:35.2]} 34. Ra5 {[%clk 0:00:29.5]}
34... c5 {[%clk 0:00:35.2]} 35. Re5 {[%clk 0:00:26.9]} 35... Rd6 {[%clk
0:00:32.5]} 36. Kf1 {[%clk 0:00:24.2]} 36... Kf7 {[%clk 0:00:29.4]} 37. Ke2
{[%clk 0:00:22.1]} 37... Re6 {[%clk 0:00:30.4]} 38. Rxe6 {[%clk 0:00:22.8]}
38... Kxe6 {[%clk 0:00:31.8]} 39. Ke3 {[%clk 0:00:19.4]} 39... c4 {[%clk
0:00:23.6]} 40. Ra6+ {[%clk 0:00:18.8]} 40... Kd7 {[%clk 0:00:21.8]} 41. Ra3
{[%clk 0:00:15.6]} 41... c3 {[%clk 0:00:20.8]} 42. Ra5 {[%clk 0:00:03.6]} 42...
c2 {[%clk 0:00:21.2]} 0-1